[Event "FRA-ch Youth U12 2018"]
[Site "Agen"]
[Date "2018.04.22"]
[Round "9"]
[White "Schippke, Manon"]
[Black "Diez, Agathe"]
[Result "1-0"]
[ECO "C54"]
[WhiteElo "1485"]
[BlackElo "1373"]
[Annotator "NA RC"]
[PlyCount "43"]
[EventDate "2018.??.??"]
[EventType "swiss"]
[EventCountry "FRA"]
[SourceTitle "playchess.com"]
[Source "ChessBase"]
[SourceQuality "1"]
[TimeControl "5400+30"]

1. e4 {[%emt 0:00:00]} e5 {[%emt 0:00:06]} 2. Nf3 {[%emt 0:00:08]} Nc6 {[%emt 0:00:06]} 3. Bc4 {[%emt 0:00:39]} Bc5 {[%emt 0:00:08]} 4. c3 {[%emt 0:00:50]} Nf6 {[%emt 0:00:11]} 5. d4 {[%emt 0:01:04]} exd4 {[%emt 0:00:06]} 6. cxd4 {[%emt 0:00:31]} Bb4+ {[%emt 0:00:08]} 7. Nc3 {[%emt 0:00:49]} Nxe4 {[%emt 0:02:40]} 8. O-O {[%emt 0:01:16]} Nxc3 {[%emt 0:01:09]} 9. bxc3 {[%emt 0:03:19]} Be7 {[%emt 0:03:13]} 10. d5 {[%emt 0:03:51]} Na5 {[%emt 0:03:52]} 11. Bd3 {[%emt 0:02:18]} O-O {[%emt 0:02:19]} 12. Re1 {[%emt 0:01:42]} Bf6 {[%emt 0:00:48]} 13. Bc2 {[%emt 0:03:06]} Bxc3 {[%emt 0:02:33]} 14. Qd3 {[%emt 0:00:07]} f5 {[%emt 0:03:26]} 15. Qxc3 {[%emt 0:01:02]} b6 {[%emt 0:02:13]} 16. Bg5 {[%emt 0:01:27]} Rf6 {[%emt 0:05:07]} 17. Bxf6 {[%emt 0:00:40]} Qxf6 {[%emt 0:00:06]} 18. Qxf6 {[%emt 0:00:41]} gxf6 {[%emt 0:00:04]} 19. Bxf5 {[%emt 0:00:27]} Nb7 {[%emt 0:01:00]} 20. Re8+ {[%emt 0:00:44]} Kf7 {[%emt 0:00:15]} 21. Rae1 {[%emt 0:00:33]} Nd6 {[%emt 0:00:25]} 22. R1e7# {[%emt 0:00:10]} 1-0

[Event "FRA-ch Youth U12 2018"]
[Site "Agen"]
[Date "2018.04.22"]
[Round "9"]
[White "Milojevic-Daim, Lola-Shaina"]
[Black "Pentcheff, Laura"]
[Result "0-1"]
[ECO "B07"]
[WhiteElo "1316"]
[BlackElo "1512"]
[Annotator "NA RC"]
[PlyCount "106"]
[EventDate "2018.??.??"]
[EventType "swiss"]
[EventCountry "FRA"]
[SourceTitle "playchess.com"]
[Source "ChessBase"]
[SourceQuality "1"]
[TimeControl "5400+30"]

1. e4 {[%emt 0:00:00]} d6 {[%emt 0:00:10]} 2. d4 {[%emt 0:00:00]} Nf6 {[%emt 0:00:05]} 3. Nc3 {[%emt 0:00:12]} g6 {[%emt 0:00:13]} 4. Be3 {[%emt 0:00:21]} Bg7 {[%emt 0:00:13]} 5. f3 {[%emt 0:00:25]} O-O {[%emt 0:00:20]} 6. Qd2 {[%emt 0:00:30]} c6 {[%emt 0:01:04]} 7. Bh6 {[%emt 0:01:19]} b5 {[%emt 0:00:24]} 8. h4 {[%emt 0:01:02]} b4 {[%emt 0:01:06]} 9. Nce2 {[%emt 0:00:45]} a5 {[%emt 0:01:12]} 10. h5 {[%emt 0:01:47]} e5 {[%emt 0:08:55]} 11. hxg6 {[%emt 0:04:01]} fxg6 {[%emt 0:02:49]} 12. Bxg7 {[%emt 0:01:01]} Kxg7 {[%emt 0:01:28]} 13. Qh6+ {[%emt 0:00:45]} Kg8 {[%emt 0:02:35]} 14. g4 {[%emt 0:02:34]} Qe7 {[%emt 0:04:39]} 15. Ng3 {[%emt 0:04:28]} exd4 {[%emt 0:02:23]} 16. N1e2 {[%emt 0:00:50]} c5 17. Nf4 {[%emt 0:02:00]} Qg7 {[%emt 0:20:31]} 18. Qg5 {[%emt 0:10:02]} Qf7 {[%emt 0:15:38]} 19. Rh6 {[%emt 0:20:35]} Nxe4 {[%emt 0:06:16]} 20. Nxe4 {[%emt 0:04:51]} Qxf4 {[%emt 0:00:26]} 21. Qxf4 {[%emt 0:09:13]} Rxf4 {[%emt 0:00:06]} 22. Nxd6 {[%emt 0:00:28]} Ba6 {[%emt 0:00:30]} 23. Bg2 Nd7 {[%emt 0:01:45]} 24. O-O-O {[%emt 0:02:21]} Ne5 {[%emt 0:04:42]} 25. Rdh1 {[%emt 0:05:11]} Ra7 {[%emt 0:09:36]} 26. Ne4 {[%emt 0:01:59]} Nxf3 {[%emt 0:01:19]} 27. Bxf3 {[%emt 0:00:55]} Rxf3 {[%emt 0:00:07]} 28. Nxc5 {[%emt 0:00:17]} Rf1+ {[%emt 0:01:06]} 29. Rxf1 {[%emt 0:00:37]} Bxf1 {[%emt 0:00:06]} 30. Rh1 {[%emt 0:00:42]} Be2 {[%emt 0:00:35]} 31. g5 {[%emt 0:00:35]} Rc7 {[%emt 0:05:45]} 32. Ne6 {[%emt 0:01:34]} Rd7 {[%emt 0:01:53]} 33. Re1 {[%emt 0:01:36]} Bc4 {[%emt 0:01:12]} 34. Kd2 {[%emt 0:01:20]} Bxe6 {[%emt 0:01:20]} 35. Rxe6 {[%emt 0:00:22]} Rd5 {[%emt 0:00:13]} 36. Re4 {[%emt 0:00:51]} Rxg5 {[%emt 0:00:23]} 37. Rxd4 {[%emt 0:00:05]} h5 {[%emt 0:02:27]} 38. Ke3 {[%emt 0:00:39]} Rg3+ {[%emt 0:00:23]} 39. Kf4 {[%emt 0:00:51]} Rg4+ {[%emt 0:00:24]} 40. Ke3 {[%emt 0:00:05]} Rxd4 {[%emt 0:00:30]} 41. Kxd4 {[%emt 0:00:30]} Kg7 {[%emt 0:00:30]} 42. Ke4 {[%emt 0:00:30]} Kf6 {[%emt 0:00:30]} 43. Kf4 {[%emt 0:00:30]} g5+ {[%emt 0:00:30]} 44. Kg3 {[%emt 0:00:30]} h4+ {[%emt 0:00:30]} 45. Kf3 Kf5 46. Kf2 {[%emt 0:00:16]} Kf4 {[%emt 0:00:28]} 47. Kg2 {[%emt 0:00:12]} g4 {[%emt 0:00:22]} 48. Kf2 {[%emt 0:00:18]} h3 {[%emt 0:00:07]} 49. Kg1 {[%emt 0:00:55]} g3 {[%emt 0:00:30]} 50. c4 {[%emt 0:00:30]} bxc3 {[%emt 0:00:30]} 51. bxc3 {[%emt 0:00:00]} Kf3 {[%emt 0:00:40]} 52. c4 {[%emt 0:00:00]} h2+ {[%emt 0:00:12]} 53. Kh1 {[%emt 0:00:02]} g2+ {[%emt 0:00:13]} 0-1